fUSD/lending_fUSD_20250629
["ID","MTS","AMOUNT","RATE_DAILY","PERIOD"]
[368580329,1751214646303,-499.80761244,0.00021917,2]
[368580331,1751214646312,-151.722732,0.00021917,2]
[368580333,1751214646322,-490.0,0.00021917,2]
[368580335,1751214646331,-490.0,0.00021917,2]
[368580337,1751214646340,-648.35,0.00021917,2]
[368580339,1751214646349,-490.0,0.00021917,2]
[368580341,1751214646359,-962.92,0.00021917,2]
[368580343,1751214646368,-500.0,0.00021917,2]
[368580345,1751214646377,-500.0,0.00021917,2]
[368580347,1751214646386,-490.0,0.00021917,2]
[368580349,1751214646395,-264.22630552,0.00021917,2]
[368580351,1751214646404,-2638.95,0.00021917,2]
[368580353,1751214646413,-376.07222626,0.00021917,2]
[368580355,1751214646422,-490.0,0.00021917,2]
[368580357,1751214646431,-490.0,0.00021917,2]
[368580359,1751214646440,-710.63,0.00021917,2]
[368580361,1751214646450,-879.75,0.00021917,2]
[368580362,1751214646459,-760.58,0.00021917,2]
[368580364,1751214646468,-2151.07,0.00021917,2]
[368580366,1751214646478,-151.0,0.00021917,2]
[368580368,1751214646487,-271.151531,0.00021917,2]
[368580370,1751214646497,-490.0,0.00021917,2]
[368580372,1751214646506,-3113.49,0.00021917,2]
[368580374,1751214646515,-490.0,0.00021917,2]
[368580376,1751214646525,-490.0,0.00021917,2]
[368580378,1751214646535,-694.46,0.00021917,2]
[368580380,1751214646544,-2568.01,0.00021917,2]
[368580382,1751214646554,-490.0,0.00021917,2]
[368580384,1751214646563,-271.151531,0.00021917,2]
[368580386,1751214646572,-4126.741109,0.00021917,2]
[368580388,1751214646582,-490.0,0.00021917,2]
[368580390,1751214646592,-774.64,0.00021917,2]
[368580392,1751214646601,-1047.99,0.00021917,2]
[368580394,1751214646610,-490.0,0.00021917,2]
[368580396,1751214646620,-490.0,0.00021917,2]
[368580398,1751214646630,-490.0,0.00021917,2]
[368580400,1751214646639,-490.0,0.00021917,2]
[368580402,1751214646649,-1092.33,0.00021917,2]
[368580404,1751214646658,-490.0,0.00021917,2]
[368580406,1751214646667,-490.0,0.00021917,2]
[368580408,1751214646677,-557.54685091,0.00021917,2]
[368580410,1751214646686,-519.36546108,0.00021917,2]
[368580412,1751214646696,-490.0,0.00021917,2]
[368580414,1751214646705,-490.0,0.00021917,2]
[368580416,1751214646714,-151.0,0.00021917,2]
[368580418,1751214646723,-152.533519,0.00021917,2]
[368580420,1751214646733,-2067.68,0.00021917,2]
[368580422,1751214646744,-525.96,0.00021917,2]
[368580424,1751214646752,-492.97651455,0.00021917,2]
[368580426,1751214646762,-490.0,0.00021917,2]
[368580428,1751214646771,-490.0,0.00021917,2]
[368580430,1751214646781,-490.0,0.00021917,2]
[368580432,1751214646790,-151.0,0.00021917,2]
[368580434,1751214646800,-490.0,0.00021917,2]
[368580436,1751214646810,-490.0,0.00021917,2]
[368580439,1751214646820,-493.16899547,0.00021917,2]
[368580441,1751214646830,-570.80091291,0.00021917,2]
[368580443,1751214646839,-490.0,0.00021917,2]
[368580445,1751214646849,-769.12,0.00021917,2]
[368580447,1751214646859,-490.0,0.00021917,2]
[368580449,1751214646869,-490.0,0.00021917,2]
[368580451,1751214646879,-151.0,0.00021917,2]
[368580453,1751214646888,-490.0,0.00021917,2]
[368580455,1751214646899,-559.27,0.00021917,2]
[368580457,1751214646909,-490.0,0.00021917,2]
[368580459,1751214646918,-490.0,0.00021917,2]
[368580461,1751214646928,-490.0,0.00021917,2]
[368580463,1751214646938,-490.0,0.00021917,2]
[368580465,1751214646948,-603.57,0.00021917,2]
[368580467,1751214646958,-490.0,0.00021917,2]
[368580469,1751214646968,-2540.47,0.00021917,2]
[368580471,1751214646978,-582.55,0.00021917,2]
[368580473,1751214646987,-490.0,0.00021917,2]
[368580475,1751214646997,-490.0,0.00021917,2]
[368580477,1751214647006,-490.0,0.00021917,2]
[368580479,1751214647017,-490.0,0.00021917,2]
[368580482,1751214647028,-542.83,0.00021917,2]
[368580484,1751214647039,-151.0,0.00021917,2]
[368580486,1751214647049,-490.0,0.00021917,2]
[368580488,1751214647059,-490.0,0.00021917,2]
[368580490,1751214647069,-938.45,0.00021917,2]
[368580492,1751214647079,-1438.19,0.00021917,2]
[368580494,1751214647089,-730.98,0.00021917,2]
[368580496,1751214647099,-490.0,0.00021917,2]
[368580498,1751214647108,-3111.15,0.00021917,2]
[368580500,1751214647118,-490.0,0.00021917,2]
[368580502,1751214647128,-490.0,0.00021917,2]
[368580504,1751214647137,-490.0,0.00021917,2]
[368580506,1751214647147,-1010.05,0.00021917,2]
[368580508,1751214647157,-560.04,0.00021917,2]
[368580510,1751214647167,-531.81,0.00021917,2]
[368580512,1751214647177,-1108.19,0.00021917,2]
[368580514,1751214647186,-490.0,0.00021917,2]
[368580516,1751214647196,-490.0,0.00021917,2]
[368580518,1751214647206,-490.0,0.00021917,2]
[368580520,1751214647215,-1017.29,0.00021917,2]
[368580522,1751214647225,-490.0,0.00021917,2]
[368580524,1751214647235,-1411.24,0.00021917,2]
[368580526,1751214647244,-756.18,0.00021917,2]
[368580528,1751214647254,-490.0,0.00021917,2]
[368580530,1751214647265,-490.0,0.00021917,2]
[368580532,1751214647275,-630.69,0.00021917,2]
[368580534,1751214647286,-2793.1,0.00021917,2]
[368580536,1751214647296,-577.65,0.00021917,2]
[368580538,1751214647307,-490.0,0.00021917,2]
[368580540,1751214647316,-490.0,0.00021917,2]
[368580542,1751214647326,-490.0,0.00021917,2]
[368580544,1751214647337,-3419.66,0.00021917,2]
[368580546,1751214647347,-585.19,0.00021917,2]
[368580548,1751214647357,-574.47,0.00021917,2]
[368580550,1751214647367,-490.0,0.00021917,2]
[368580552,1751214647377,-1842.63,0.00021917,2]
[368580554,1751214647386,-1909.74,0.00021917,2]
[368580556,1751214647396,-1895.87,0.00021917,2]
[368580559,1751214647405,-1988.73,0.00021917,2]
[368580561,1751214647415,-584.03,0.00021917,2]
[368580563,1751214647425,-462.35051923,0.00021917,2]
[368580565,1751214647434,-1920.66,0.00021917,2]
[368580567,1751214647444,-490.0,0.00021917,2]
[368580569,1751214647453,-490.0,0.00021917,2]
[368580571,1751214647463,-490.0,0.00021917,2]
[368580573,1751214647473,-2419.74,0.00021917,2]
[368580575,1751214647483,-2109.17,0.00021917,2]
[368580577,1751214647493,-490.0,0.00021917,2]
[368580579,1751214647503,-490.0,0.00021917,2]
[368580581,1751214647512,-390.20932361,0.00021917,2]
[368580583,1751214647522,-490.0,0.00021917,2]
[368580585,1751214647531,-490.0,0.00021917,2]
[368580587,1751214647541,-197.59148099,0.00021917,2]
[368580589,1751214647551,-258.74733659,0.00021917,2]
[368580591,1751214647561,-879.43,0.00021917,2]
[368580593,1751214647570,-490.0,0.00021917,2]
[368580595,1751214647580,-562.5,0.00021917,2]
[368580597,1751214647590,-490.0,0.00021917,2]
[368580599,1751214647599,-153.196033,0.00021917,2]
[368580601,1751214647609,-495.1301241,0.00021917,2]
[368580603,1751214647619,-1292.21,0.00021917,2]
[368580605,1751214647628,-490.0,0.00021917,2]
[368580607,1751214647638,-191.89491843,0.00021917,2]
[368580609,1751214647648,-2692.28,0.00021917,2]
[368580611,1751214647658,-490.0,0.00021917,2]
[368580613,1751214647669,-899.49,0.00021917,2]
[368580615,1751214647679,-490.0,0.00021917,2]
[368580617,1751214647688,-1200.51,0.00021917,2]
[368580619,1751214647698,-1017.43,0.00021917,2]
[368580621,1751214647708,-490.0,0.00021917,2]
[368580623,1751214647718,-490.0,0.00021917,2]
[368580625,1751214647727,-490.0,0.00021917,2]
[368580627,1751214647736,-151.0,0.00021917,2]
[368580629,1751214647747,-490.0,0.00021917,2]
[368580631,1751214647757,-151.972488,0.00021917,2]
[368580633,1751214647766,-2122.99,0.00021917,2]
[368580635,1751214647775,-490.0,0.00021917,2]
[368580637,1751214647785,-896.08,0.00021917,2]
[368580639,1751214647794,-490.0,0.00021917,2]
[368580641,1751214647804,-3033.51,0.00021917,2]
[368580643,1751214647815,-430.01165356,0.00021917,2]
[368580645,1751214647824,-490.0,0.00021917,2]
[368580647,1751214647835,-625.12168797,0.00021917,2]
[368580649,1751214647844,-490.0,0.00021917,2]
[368580652,1751214647854,-490.0,0.00021917,2]
[368580654,1751214647864,-785.24,0.00021917,2]
[368580656,1751214647874,-490.0,0.00021917,2]
[368580658,1751214647883,-490.0,0.00021917,2]
[368580660,1751214647893,-490.0,0.00021917,2]
[368580662,1751214647903,-1108.6,0.00021917,2]
[368580664,1751214647912,-1725.61,0.00021917,2]
[368580666,1751214647922,-490.0,0.00021917,2]
[368580668,1751214647932,-1404.29,0.00021917,2]
[368580670,1751214647941,-490.0,0.00021917,2]
[368580672,1751214647952,-490.0,0.00021917,2]
[368580674,1751214647962,-490.0,0.00021917,2]
[368580676,1751214647973,-490.0,0.00021917,2]
[368580678,1751214647983,-490.0,0.00021917,2]
[368580680,1751214647992,-613.45,0.00021917,2]
[368580682,1751214648002,-2570.54,0.00021917,2]
[368580684,1751214648012,-490.0,0.00021917,2]
[368580685,1751214648022,-490.0,0.00021917,2]
[368580686,1751214648032,-151.0,0.00021917,2]
[368580687,1751214648042,-490.0,0.00021917,2]
[368580689,1751214648052,-490.0,0.00021917,2]
[368580691,1751214648062,-490.0,0.00021917,2]
[368580693,1751214648074,-834.73,0.00021917,2]
[368580695,1751214648085,-490.0,0.00021917,2]
[368580697,1751214648095,-490.0,0.00021917,2]
[368580700,1751214648106,-2128.64,0.00021917,2]
[368580702,1751214648116,-980.56,0.00021917,2]
[368580704,1751214648126,-490.0,0.00021917,2]
[368580706,1751214648136,-495.46273633,0.00021917,2]
[368580708,1751214648147,-490.0,0.00021917,2]
[368580710,1751214648157,-490.0,0.00021917,2]
[368580712,1751214648167,-491.94951106,0.00021917,2]
[368580714,1751214648177,-1139.43,0.00021917,2]
[368580716,1751214648187,-490.0,0.00021917,2]
[368580718,1751214648198,-609.89,0.00021917,2]
[368580720,1751214648208,-535.37,0.00021917,2]
[368580722,1751214648217,-1130.84,0.00021917,2]
[368580725,1751214648228,-490.0,0.00021917,2]
[368580727,1751214648237,-490.0,0.00021917,2]
[368580729,1751214648248,-636.79,0.00021917,2]
[368580731,1751214648257,-151.0,0.00021917,2]
[368580733,1751214648267,-490.0,0.00021917,2]
[368580735,1751214648277,-490.0,0.00021917,2]
[368580737,1751214648288,-651.19,0.00021917,2]
[368580739,1751214648298,-1577.9,0.00021917,2]
[368580741,1751214648308,-490.0,0.00021917,2]
[368580743,1751214648318,-2478.23,0.00021917,2]
[368580745,1751214648330,-490.0,0.00021917,2]
[368580747,1751214648340,-490.0,0.00021917,2]
[368580749,1751214648350,-2846.1,0.00021917,2]
[368580752,1751214648373,-151.0,0.00021917,2]
[368580754,1751214648384,-490.0,0.00021917,2]
[368580756,1751214648394,-825.55,0.00021917,2]
[368580759,1751214648404,-918.29,0.00021917,2]
[368580761,1751214648415,-490.0,0.00021917,2]
[368580763,1751214648425,-490.0,0.00021917,2]
[368580765,1751214648436,-1959.92,0.00021917,2]
[368580767,1751214648446,-617.49,0.00021917,2]
[368580769,1751214648456,-1149.75,0.00021917,2]
[368580771,1751214648466,-490.0,0.00021917,2]
[368580773,1751214648476,-490.0,0.00021917,2]
[368580775,1751214648486,-490.0,0.00021917,2]
[368580777,1751214648497,-490.0,0.00021917,2]
[368580779,1751214648508,-1109.33,0.00021917,2]
[368580781,1751214648518,-490.0,0.00021917,2]
[368580783,1751214648528,-506.14,0.00021917,2]
[368580785,1751214648539,-2587.41,0.00021917,2]
[368580787,1751214648550,-1059.28,0.00021917,2]
[368580789,1751214648560,-1901.69,0.00021917,2]
[368580791,1751214648570,-490.0,0.00021917,2]
[368580793,1751214648581,-2719.22,0.00021917,2]
[368580795,1751214648592,-569.11,0.00021917,2]
[368580798,1751214648603,-490.0,0.00021917,2]
[368580800,1751214648614,-500.0,0.00021917,2]
[368580802,1751214648623,-511.38,0.00021917,2]
[368580804,1751214648634,-490.0,0.00021917,2]
[368580806,1751214648644,-490.0,0.00021917,2]
[368580808,1751214648655,-1229.86,0.00021917,2]
[368580810,1751214648665,-592.11,0.00021917,2]
[368580812,1751214648675,-513.74368128,0.00021917,2]
[368580814,1751214648686,-590.88,0.00021917,2]
[368580816,1751214648697,-151.0,0.00021917,2]
[368580818,1751214648707,-1788.59,0.00021917,2]
[368580820,1751214648717,-1724.04,0.00021917,2]
[368580822,1751214648727,-490.0,0.00021917,2]
[368580825,1751214648738,-151.0,0.00021917,2]
[368580827,1751214648748,-869.44,0.00021917,2]
[368580829,1751214648758,-490.0,0.00021917,2]
[368580831,1751214648768,-490.0,0.00021917,2]
[368580833,1751214648778,-1498.93,0.00021917,2]
[368580835,1751214648789,-490.0,0.00021917,2]
[368580837,1751214648798,-490.0,0.00021917,2]
[368580839,1751214648807,-490.0,0.00021917,2]
[368580841,1751214648819,-1320.98,0.00021917,2]
[368580843,1751214648828,-842.47,0.00021917,2]
[368580845,1751214648839,-490.0,0.00021917,2]
[368580847,1751214648849,-490.0,0.00021917,2]
[368580849,1751214648859,-490.0,0.00021917,2]
[368580851,1751214648870,-490.0,0.00021917,2]
[368580853,1751214648881,-490.0,0.00021917,2]
[368580855,1751214648891,-491.41566246,0.00021917,2]
[368580858,1751214648902,-2238.45,0.00021917,2]
[368580860,1751214648913,-490.0,0.00021917,2]
[368580862,1751214648923,-490.0,0.00021917,2]
[368580864,1751214648934,-754.32,0.00021917,2]
[368580866,1751214648944,-2813.61,0.00021917,2]
[368580868,1751214648954,-1189.38,0.00021917,2]
[368580870,1751214648964,-490.0,0.00021917,2]
[368580872,1751214648975,-490.0,0.00021917,2]
[368580874,1751214648986,-2656.66,0.00021917,2]
[368580876,1751214648996,-542.82463537,0.00021917,2]
[368580878,1751214649007,-3054.19,0.00021917,2]
[368580880,1751214649018,-490.0,0.00021917,2]
[368580915,1751214649343,-1059.23,0.00021917,2]
[368580917,1751214649353,-490.0,0.00021917,2]
[368580919,1751214649364,-490.0,0.00021917,2]
[368580921,1751214649373,-490.0,0.00021917,2]
[368580923,1751214649383,-490.0,0.00021917,2]
[368580925,1751214649392,-490.0,0.00021917,2]
[368580927,1751214649401,-151.0,0.00021917,2]
[368580929,1751214649411,-2351.53,0.00021917,2]
[368580931,1751214649421,-1796.05,0.00021917,2]
[368580933,1751214649430,-1707.8,0.00021917,2]
[368580935,1751214649439,-490.0,0.00021917,2]
[368580937,1751214649450,-490.0,0.00021917,2]
[368580939,1751214649459,-2174.13,0.00021917,2]
[368580941,1751214649469,-1051.15,0.00021917,2]
[368580944,1751214649478,-210.297307,0.00021917,2]
[368580946,1751214649487,-490.0,0.00021917,2]
[368580948,1751214649498,-490.0,0.00021917,2]
[368580950,1751214649508,-770.5,0.00021917,2]
[368580952,1751214649518,-490.0,0.00021917,2]
[368580954,1751214649527,-490.0,0.00021917,2]
[368580956,1751214649537,-490.0,0.00021917,2]
[368580958,1751214649546,-490.0,0.00021917,2]
[368580960,1751214649556,-518.42,0.00021917,2]
[368580962,1751214649565,-490.0,0.00021917,2]
[368580964,1751214649574,-490.0,0.00021917,2]
[368580966,1751214649585,-716.57,0.00021917,2]
[368580968,1751214649594,-490.0,0.00021917,2]
[368580970,1751214649604,-490.0,0.00021917,2]
[368580972,1751214649614,-490.0,0.00021917,2]
[368580974,1751214649623,-490.0,0.00021917,2]
[368580976,1751214649633,-490.0,0.00021917,2]
[368580978,1751214649642,-490.0,0.00021917,2]
[368580980,1751214649651,-490.0,0.00021917,2]
[368580982,1751214649662,-741.36,0.00021917,2]
[368580984,1751214649671,-490.0,0.00021917,2]
[368580986,1751214649681,-490.0,0.00021917,2]
[368580988,1751214649690,-490.0,0.00021917,2]
[368580990,1751214649699,-580.42,0.00021917,2]
[368580992,1751214649709,-490.0,0.00021917,2]
[368580994,1751214649718,-154.789726,0.00021917,2]
[368580996,1751214649727,-490.0,0.00021917,2]
[368580998,1751214649736,-575.52,0.00021917,2]
[368581000,1751214649745,-490.0,0.00021917,2]
[368581002,1751214649754,-1142.22,0.00021917,2]
[368581004,1751214649763,-490.0,0.00021917,2]
[368581006,1751214649773,-2596.36,0.00021917,2]
[368581008,1751214649782,-490.0,0.00021917,2]
[368581010,1751214649791,-1522.67,0.00021917,2]
[368581012,1751214649800,-1255.34,0.00021917,2]
[368581014,1751214649809,-500.0,0.00021917,2]
[368581016,1751214649821,-500.0,0.00021917,2]
[368581018,1751214649830,-531.74536547,0.00021917,2]
[368581020,1751214649840,-490.0,0.00021917,2]
[368581022,1751214649850,-490.0,0.00021917,2]
[368581024,1751214649859,-1841.81,0.00021917,2]
[368581026,1751214649869,-490.0,0.00021917,2]
[368581028,1751214649878,-624.65,0.00021917,2]
[368581030,1751214649887,-490.0,0.00021917,2]
[368581032,1751214649896,-490.0,0.00021917,2]
[368581034,1751214649906,-490.0,0.00021917,2]
[368581036,1751214649916,-490.0,0.00021917,2]
[368581038,1751214649925,-864.66,0.00021917,2]
[368581040,1751214649934,-151.0,0.00021917,2]
[368581042,1751214649944,-1639.48,0.00021917,2]
[368581044,1751214649953,-490.0,0.00021917,2]
[368581046,1751214649962,-538.63,0.00021917,2]
[368581048,1751214649971,-490.0,0.00021917,2]
[368581049,1751214649981,-490.0,0.00021917,2]
[368581050,1751214649989,-1058.68,0.00021917,2]
[368581051,1751214649999,-490.0,0.00021917,2]
[368581052,1751214650009,-849.05,0.00021917,2]
[368581053,1751214650018,-490.0,0.00021917,2]
[368581054,1751214650028,-490.93175418,0.00021917,2]
[368581055,1751214650038,-490.0,0.00021917,2]
[368581056,1751214650047,-1069.74,0.00021917,2]
[368581057,1751214650057,-490.0,0.00021917,2]
[368581058,1751214650066,-490.0,0.00021917,2]
[368581059,1751214650076,-490.0,0.00021917,2]
[368581060,1751214650086,-505.55895388,0.00021917,2]
[368581061,1751214650095,-1356.56,0.00021917,2]
[368581062,1751214650105,-490.0,0.00021917,2]
[368581063,1751214650114,-2027.49,0.00021917,2]
[368581064,1751214650123,-490.0,0.00021917,2]
[368581065,1751214650133,-490.0,0.00021917,2]
[368581066,1751214650143,-630.98,0.00021917,2]
[368581067,1751214650152,-490.0,0.00021917,2]
[368581068,1751214650161,-372.11883628,0.00021917,2]
[368581069,1751214650171,-490.0,0.00021917,2]
[368581070,1751214650180,-2744.52,0.00021917,2]
[368581071,1751214650190,-490.0,0.00021917,2]
[368581072,1751214650199,-490.0,0.00021917,2]
[368581073,1751214650209,-1496.76,0.00021917,2]
[368581074,1751214650218,-490.0,0.00021917,2]
[368581075,1751214650227,-1104.82,0.00021917,2]
[368581076,1751214650237,-1626.28,0.00021917,2]
[368581078,1751214650246,-490.0,0.00021917,2]
[368581080,1751214650255,-1933.31,0.00021917,2]
[368581082,1751214650264,-1594.99,0.00021917,2]
[368581084,1751214650274,-490.0,0.00021917,2]
[368581085,1751214650284,-715.55,0.00021917,2]
[368581086,1751214650296,-490.0,0.00021917,2]
[368581087,1751214650306,-490.0,0.00021917,2]
[368581088,1751214650315,-572.61,0.00021917,2]
[368581089,1751214650325,-490.0,0.00021917,2]
[368581090,1751214650335,-1527.06,0.00021917,2]
[368581091,1751214650346,-490.0,0.00021917,2]
[368581092,1751214650357,-151.0,0.00021917,2]
[368581093,1751214650367,-490.0,0.00021917,2]
[368581094,1751214650376,-490.0,0.00021917,2]
[368581095,1751214650386,-1013.67,0.00021917,2]
[368581096,1751214650397,-1039.18,0.00021917,2]
[368581097,1751214650407,-1007.5,0.00021917,2]
[368581098,1751214650416,-490.0,0.00021917,2]
[368581099,1751214650426,-490.0,0.00021917,2]
[368581100,1751214650436,-490.0,0.00021917,2]
[368581101,1751214650446,-615.3,0.00021917,2]
[368581102,1751214650456,-1093.49,0.00021917,2]
[368581103,1751214650466,-981.79,0.00021917,2]
[368581104,1751214650476,-490.0,0.00021917,2]
[368581105,1751214650486,-1683.21,0.00021917,2]
[368581106,1751214650495,-490.0,0.00021917,2]
[368581107,1751214650506,-794.48,0.00021917,2]
[368581108,1751214650516,-490.0,0.00021917,2]
[368581109,1751214650525,-490.0,0.00021917,2]
[368581110,1751214650535,-490.0,0.00021917,2]
[368581111,1751214650544,-1737.91,0.00021917,2]
[368581112,1751214650554,-490.0,0.00021917,2]
[368581113,1751214650564,-1210.28,0.00021917,2]
[368581114,1751214650573,-849.69,0.00021917,2]
[368581115,1751214650584,-490.0,0.00021917,2]
[368581116,1751214650593,-1273.65,0.00021917,2]
[368581117,1751214650603,-490.0,0.00021917,2]
[368581118,1751214650613,-399.513233,0.00021917,2]
[368581119,1751214650623,-1388.64,0.00021917,2]
[368581120,1751214650632,-550.27,0.00021917,2]
[368581121,1751214650642,-490.0,0.00021917,2]
[368581122,1751214650651,-490.0,0.00021917,2]
[368581123,1751214650661,-920.41,0.00021917,2]
[368581124,1751214650671,-152.925093,0.00021917,2]
[368581125,1751214650680,-399.513233,0.00021917,2]
[368581126,1751214650689,-490.0,0.00021917,2]
[368581127,1751214650698,-605.76,0.00021917,2]
[368581128,1751214650708,-490.0,0.00021917,2]
[368581129,1751214650718,-1471.48,0.00021917,2]
[368581130,1751214650727,-513.99166429,0.00021917,2]
[368581131,1751214650737,-990.83,0.00021917,2]
[368581132,1751214650747,-904.26,0.00021917,2]
[368581133,1751214650756,-1169.59,0.00021917,2]
[368581134,1751214650767,-490.0,0.00021917,2]
[368581135,1751214650776,-200.0,0.00021917,2]
[368581136,1751214650785,-490.0,0.00021917,2]
[368581137,1751214650795,-490.0,0.00021917,2]
[368581138,1751214650804,-919.6,0.00021917,2]
[368581139,1751214650814,-892.56,0.00021917,2]
[368581140,1751214650823,-490.0,0.00021917,2]
[368581141,1751214650834,-490.0,0.00021917,2]
[368581142,1751214650844,-490.0,0.00021917,2]
[368581143,1751214650854,-3537.2,0.00021917,2]
[368581144,1751214650863,-538.29,0.00021917,2]
[368581145,1751214650873,-801.41,0.00021917,2]
[368581146,1751214650882,-490.0,0.00021917,2]
[368581147,1751214650892,-571.75,0.00021917,2]
[368581148,1751214650902,-490.0,0.00021917,2]
[368581149,1751214650911,-490.0,0.00021917,2]
[368581150,1751214650921,-743.85,0.00021917,2]
[368581151,1751214650930,-490.0,0.00021917,2]
[368581152,1751214650940,-707.11,0.00021917,2]
[368581153,1751214650949,-151.0,0.00021917,2]
[368581154,1751214650959,-151.0,0.00021917,2]
[368581155,1751214650969,-799.76,0.00021917,2]
[368581156,1751214650978,-566.95484858,0.00021917,2]
[368581157,1751214650988,-490.0,0.00021917,2]
[368581158,1751214650997,-490.0,0.00021917,2]
[368581159,1751214651007,-1747.64,0.00021917,2]
[368581160,1751214651017,-152.138783,0.00021917,2]
[368581161,1751214651026,-506.76,0.00021917,2]
[368581162,1751214651036,-1158.19,0.00021917,2]
[368581163,1751214651045,-490.0,0.00021917,2]
[368581164,1751214651054,-151.0,0.00021917,2]
[368581165,1751214651064,-1081.64,0.00021917,2]
[368581166,1751214651074,-151.0,0.00021917,2]
[368581167,1751214651084,-490.0,0.00021917,2]
[368581168,1751214651094,-490.0,0.00021917,2]
[368581169,1751214651103,-490.0,0.00021917,2]
[368581170,1751214651113,-490.0,0.00021917,2]
[368581171,1751214651123,-490.0,0.00021917,2]
[368581172,1751214651132,-610.96,0.00021917,2]
[368581173,1751214651142,-490.0,0.00021917,2]
[368581174,1751214651151,-490.0,0.00021917,2]
[368581175,1751214651160,-151.0,0.00021917,2]
[368581176,1751214651170,-162.216446,0.00021917,2]
[368581177,1751214651179,-556.18,0.00021917,2]
[368581178,1751214651188,-1793.57,0.00021917,2]
[368581179,1751214651198,-490.0,0.00021917,2]
[368581180,1751214651207,-683.33,0.00021917,2]
[368581181,1751214651217,-490.0,0.00021917,2]
[368581182,1751214651225,-490.0,0.00021917,2]
[368581183,1751214651234,-490.0,0.00021917,2]
[368581184,1751214651244,-490.0,0.00021917,2]
[368581185,1751214651253,-1532.33,0.00021917,2]
[368581186,1751214651262,-490.0,0.00021917,2]
[368581187,1751214651272,-490.0,0.00021917,2]
[368581188,1751214651283,-490.0,0.00021917,2]
[368581189,1751214651295,-490.0,0.00021917,2]
[368581190,1751214651304,-490.0,0.00021917,2]
[368581191,1751214651313,-490.0,0.00021917,2]
[368581192,1751214651323,-490.0,0.00021917,2]
[368581193,1751214651334,-3289.11,0.00021917,2]
[368581194,1751214651344,-490.0,0.00021917,2]
[368581195,1751214651353,-492.02,0.00021917,2]
[368581196,1751214651363,-490.0,0.00021917,2]
[368581197,1751214651373,-644.77,0.00021917,2]
[368581198,1751214651382,-490.0,0.00021917,2]
[368581199,1751214651391,-756.99,0.00021917,2]
[368581200,1751214651400,-490.0,0.00021917,2]
[368581201,1751214651410,-490.0,0.00021917,2]
[368581202,1751214651419,-490.0,0.00021917,2]
[368581203,1751214651428,-2186.14,0.00021917,2]
[368581204,1751214651437,-631.75,0.00021917,2]
[368581205,1751214651447,-1216.13,0.00021917,2]
[368581206,1751214651456,-490.0,0.00021917,2]
[368581207,1751214651466,-490.0,0.00021917,2]
[368581208,1751214651475,-490.0,0.00021917,2]
[368581209,1751214651484,-792.52,0.00021917,2]
[368581210,1751214651494,-490.0,0.00021917,2]
[368581211,1751214651503,-490.0,0.00021917,2]
[368581212,1751214651512,-490.0,0.00021917,2]